bitfinex-derivatives/quotes_BTCF0:USTF0_20250330
["timestamp","ask_amount","ask_price","bid_price","bid_amount"]
[1743294442671,0.32637079,82668.0,82662.0,0.0642]
[1743294442870,0.32637079,82668.0,82665.0,8e-05]
[1743294443672,0.32637079,82668.0,82662.0,0.0642]
[1743294443673,0.121019,82663.0,82662.0,0.0642]
[1743294443872,0.24926494,82663.0,82662.0,0.0642]
[1743294444070,0.25901304,82663.0,82662.0,0.0642]
[1743294444479,0.44227956,82663.0,82662.0,0.0642]
[1743294444882,0.44327956,82663.0,82662.0,0.0642]
[1743294445875,0.45255921,82663.0,82662.0,0.0642]
[1743294447374,0.46866609,82663.0,82662.0,0.0642]
[1743294447982,0.46916981,82663.0,82662.0,0.0642]
[1743294449875,0.47216981,82663.0,82662.0,0.0642]
[1743294450477,0.47516981,82663.0,82662.0,0.0642]
[1743294451282,0.45906117,82663.0,82662.0,0.0642]
[1743294451669,0.45850376,82663.0,82662.0,0.0642]
[1743294451870,0.58954685,82663.0,82662.0,0.0642]
[1743294452081,0.59254685,82663.0,82662.0,0.0642]
[1743294452379,0.58954685,82663.0,82662.0,0.0642]
[1743294452688,0.59154685,82663.0,82662.0,0.0642]
[1743294453585,0.58654685,82663.0,82662.0,0.0642]
[1743294453787,0.59154685,82663.0,82662.0,0.0642]
[1743294454779,0.58854685,82663.0,82662.0,0.0642]
[1743294454981,0.44675566,82663.0,82662.0,0.0642]
[1743294455380,0.44682937,82663.0,82662.0,0.0642]
[1743294456184,0.44482937,82663.0,82662.0,0.0642]
[1743294456486,0.44782937,82663.0,82662.0,0.0642]
[1743294457188,0.45455622,82663.0,82662.0,0.0642]
[1743294457389,0.27927295,82663.0,82662.0,0.0642]
[1743294457589,0.14902678,82663.0,82662.0,0.5460205]
[1743294457890,0.26674678,82663.0,82662.0,0.425]
[1743294458279,0.25701993,82663.0,82662.0,0.425]
[1743294458486,0.25601993,82663.0,82662.0,0.425]
[1743294459192,0.25601993,82663.0,82662.0,0.0642]
[1743294459392,0.25501993,82663.0,82662.0,0.0642]
[1743294459789,0.31681993,82663.0,82662.0,0.0642]
[1743294459978,0.43479376,82663.0,82662.0,0.0642]
[1743294460183,0.43779376,82663.0,82662.0,0.0642]
[1743294460386,0.43679376,82663.0,82662.0,0.0642]
[1743294460991,0.43579376,82663.0,82662.0,0.0642]
[1743294461192,0.44559462,82663.0,82662.0,0.0642]
[1743294461489,0.44574231,82663.0,82662.0,0.0642]
[1743294461692,0.44374231,82663.0,82662.0,0.0642]
[1743294461996,0.59364858,82663.0,82662.0,0.0642]
[1743294462491,0.59464858,82663.0,82662.0,0.0642]
[1743294463590,0.59464858,82663.0,82662.0,0.0326]
[1743294463790,0.1210205,82662.0,82661.0,8e-05]
[1743294463987,0.13256913,82662.0,82661.0,8e-05]
[1743294464192,0.19306913,82662.0,82661.0,8e-05]
[1743294464587,0.121022,82661.0,82660.0,0.00012086]
[1743294464785,0.13253063,82661.0,82660.0,0.00012086]
[1743294464988,0.19303063,82661.0,82660.0,0.00012086]
[1743294465383,0.31400593,82661.0,82660.0,0.00012086]
[1743294465992,0.31600593,82661.0,82660.0,0.00012086]
[1743294466382,0.31700593,82661.0,82660.0,0.00012086]
[1743294467293,0.3267535,82661.0,82660.0,0.00012086]
[1743294467497,0.3297535,82661.0,82660.0,0.00012086]
[1743294469698,0.60561107,82661.0,82660.0,0.00012086]
[1743294469999,0.60582646,82661.0,82660.0,0.00012086]
[1743294470499,0.60582686,82661.0,82660.0,0.00012086]
[1743294472199,0.60581791,82661.0,82660.0,0.00012086]
[1743294473300,0.54531791,82661.0,82660.0,0.00012086]
[1743294473599,0.42434261,82661.0,82660.0,0.00012086]
[1743294474000,0.54206261,82661.0,82660.0,0.00012086]
[1743294474199,0.53231504,82661.0,82660.0,0.00012086]
[1743294475202,0.54205527,82661.0,82660.0,0.00012086]
[1743294475501,0.62199258,82661.0,82660.0,0.00012086]
[1743294476498,0.60575527,82661.0,82660.0,0.00012086]
[1743294476891,0.72673203,82661.0,82660.0,0.00012086]
[1743294477307,0.7169918,82661.0,82660.0,0.00012086]
[1743294477608,0.7179918,82661.0,82660.0,0.00012086]
[1743294477998,0.86178121,82661.0,82660.0,0.00012086]
[1743294478397,0.84882575,82661.0,82660.0,0.00012086]
[1743294478598,0.85182575,82661.0,82660.0,0.00012086]
[1743294479501,0.86163133,82661.0,82660.0,0.00012086]
[1743294480107,0.85182575,82661.0,82660.0,0.00012086]
[1743294481006,0.84782575,82661.0,82660.0,0.00012086]
[1743294481199,0.84982575,82661.0,82660.0,0.00012086]
[1743294482101,0.48902575,82661.0,82660.0,0.00012086]
[1743294484004,0.43017877,82661.0,82660.0,0.00012086]
[1743294486608,0.43992929,82661.0,82660.0,0.00012086]
[1743294486809,0.43692929,82661.0,82660.0,0.00012086]
[1743294487113,0.43992929,82661.0,82660.0,0.00012086]
[1743294487609,0.43017877,82661.0,82660.0,0.00012086]
[1743294490108,0.31245877,82661.0,82660.0,0.00012086]
[1743294490313,0.24875877,82661.0,82660.0,0.12114426]
[1743294490511,0.12778201,82661.0,82660.0,0.00012086]
[1743294490713,0.12778201,82661.0,82660.0,0.06352086]
[1743294490899,0.15998201,82661.0,82660.0,0.06352086]
[1743294491305,0.16976569,82661.0,82660.0,0.06352086]
[1743294491502,0.17968209,82661.0,82660.0,0.06352086]
[1743294492309,0.21138209,82661.0,82660.0,0.06352086]
[1743294494011,0.33239764,82661.0,82660.0,0.06352086]
[1743294495325,0.39124309,82661.0,82660.0,0.06352086]
[1743294499425,0.39108783,82661.0,82660.0,0.06352086]
[1743294502020,0.39108783,82661.0,82660.0,0.00012086]
[1743294502324,0.61935855,82661.0,82660.0,0.03182086]
[1743294502519,0.61935855,82661.0,82660.0,0.06402086]
[1743294503320,0.60809842,82661.0,82660.0,0.06402086]
[1743294505024,0.60809842,82661.0,82660.0,0.00012086]
[1743294505731,0.53134095,82661.0,82660.0,0.00012086]
[1743294508834,0.53134095,82661.0,82660.0,0.03302086]
[1743294510234,0.53492419,82661.0,82660.0,0.06372086]
[1743294511232,0.52514051,82661.0,82660.0,0.06372086]
[1743294511427,0.52514051,82661.0,82660.0,0.03302086]
[1743294512136,0.64611727,82661.0,82660.0,0.00012086]
[1743294513529,0.64811727,82661.0,82660.0,0.00012086]
[1743294513735,0.50786415,82661.0,82660.0,0.00012086]
[1743294514330,0.50796522,82661.0,82660.0,0.00012086]
[1743294514534,0.51769588,82661.0,82660.0,0.00012086]
[1743294515427,0.50796522,82661.0,82660.0,0.00012086]
[1743294517934,0.86876522,82661.0,82660.0,0.00012086]
[1743294519236,0.86876522,82661.0,82655.0,8e-05]
[1743294519237,0.0605124,82659.0,82655.0,8e-05]
[1743294519439,0.1210293,82656.0,82655.0,8e-05]
[1743294519738,0.1210293,82656.0,82651.0,0.00056396]
[1743294519739,0.1210351,82652.0,82651.0,0.00048396]
[1743294520041,0.2565761,82652.0,82651.0,0.03098396]
[1743294520439,0.2565761,82652.0,82651.0,0.06188396]
[1743294520640,0.43845798,82652.0,82651.0,0.06188396]
[1743294521442,0.46049878,82652.0,82651.0,0.06188396]
[1743294522540,0.1210395,82649.0,82648.0,0.36088]
[1743294522840,0.1210395,82649.0,82648.0,0.3608]
[1743294522841,0.1326205,82649.0,82648.0,0.3608]
[1743294523243,0.2634329,82649.0,82648.0,0.3608]
[1743294523438,0.33929291,82649.0,82648.0,0.3608]
[1743294523641,0.33929314,82649.0,82648.0,0.3608]
[1743294524043,0.34129314,82649.0,82648.0,0.3608]
[1743294524435,0.3300329,82649.0,82648.0,0.3608]
[1743294525131,0.3310329,82649.0,82648.0,0.3608]
[1743294526248,0.38987835,82649.0,82648.0,0.3608]
[1743294527232,0.38967455,82649.0,82648.0,0.3608]
[1743294528746,0.3896571,82649.0,82648.0,0.3608]
[1743294529244,0.3896603,82649.0,82648.0,0.3608]
[1743294529643,0.2686208,82649.0,82646.0,8e-05]
[1743294529849,0.03998295,82648.0,82646.0,8e-05]
[1743294530045,0.00968295,82647.0,82646.0,8e-05]
[1743294530348,0.07226295,82647.0,82646.0,8e-05]
[1743294530546,0.20307975,82647.0,82646.0,8e-05]
[1743294530744,0.32412225,82647.0,82646.0,8e-05]
[1743294530945,0.32412225,82647.0,82646.0,0.03228]
[1743294532452,0.32512225,82647.0,82646.0,0.03228]
[1743294533056,0.32712225,82647.0,82646.0,0.03228]
[1743294533352,0.31729978,82647.0,82646.0,0.03228]
[1743294534151,0.31729978,82647.0,82646.0,0.06368]
[1743294534848,0.30761683,82647.0,82646.0,0.06368]
[1743294535246,0.48887096,82647.0,82646.0,0.06368]
[1743294538754,0.30761683,82647.0,82646.0,0.06368]
[1743294542167,0.48887096,82647.0,82646.0,0.06368]
[1743294545261,0.30697663,82647.0,82646.0,0.06368]
[1743294545558,0.42937663,82647.0,82646.0,0.06368]
[1743294546562,0.30697919,82647.0,82646.0,0.06368]
[1743294548461,0.18457919,82647.0,82646.0,0.06368]
[1743294549956,0.18457919,82647.0,82646.0,0.09518]
[1743294550356,0.1257225,82647.0,82646.0,0.09518]
[1743294552149,0.1257225,82647.0,82646.0,0.2162239]
[1743294553762,0.00468,82647.0,82646.0,0.2162239]
[1743294553956,0.1257225,82647.0,82646.0,0.22805564]
[1743294554156,0.1257225,82647.0,82646.0,0.2162239]
[1743294554967,0.1257225,82647.0,82646.0,0.2161439]
[1743294557165,0.1257225,82647.0,82646.0,0.5769439]
[1743294558061,0.1257225,82647.0,82646.0,0.9865439]
[1743294559162,0.1240425,82647.0,82646.0,0.9865439]
[1743294559869,0.1556425,82647.0,82646.0,0.9865439]
[1743294560372,0.19034251,82647.0,82646.0,0.8341]
[1743294560775,0.19034251,82647.0,82646.0,0.9551439]
[1743294560972,0.19034251,82647.0,82646.0,0.8341]
[1743294562277,0.31226251,82647.0,82646.0,0.8341]
[1743294563067,0.31226251,82647.0,82646.0,0.4733]
[1743294563279,0.45730971,82647.0,82646.0,0.4733]
[1743294563879,0.45730971,82647.0,82646.0,0.0637]
[1743294566382,0.45730971,82647.0,82646.0,0.0315]
[1743294566572,0.1210439,82646.0,82645.0,8e-05]
[1743294566770,0.1210454,82645.0,82644.0,0.3608]
[1743294566966,0.18676541,82645.0,82644.0,0.36088]
[1743294567483,0.18676541,82645.0,82644.0,0.39258]
[1743294567680,0.18676541,82645.0,82644.0,0.42438]
[1743294568565,0.18776541,82645.0,82644.0,0.42438]
[1743294572486,0.18776541,82645.0,82644.0,0.39268]
[1743294573781,0.18776541,82645.0,82644.0,0.03188]
[1743294573985,0.18776541,82645.0,82644.0,0.39268]
[1743294576181,0.18776541,82645.0,82644.0,0.03188]
[1743294576489,0.18776541,82645.0,82644.0,0.39268]
[1743294577281,0.18776541,82645.0,82644.0,0.03188]
[1743294577590,0.18776541,82645.0,82644.0,0.39268]
[1743294578882,0.18776541,82645.0,82644.0,0.03188]
[1743294579084,0.18776541,82645.0,82644.0,0.39268]
[1743294580794,0.18776541,82645.0,82644.0,0.36088]
[1743294583599,0.18776541,82645.0,82644.0,8e-05]
[1743294583791,0.18776541,82645.0,82644.0,0.36088]
[1743294584184,0.30824541,82645.0,82644.0,0.36088]
[1743294588112,0.12376541,82645.0,82644.0,0.4819269]
[1743294588507,0.12376541,82645.0,82644.0,0.5455269]
[1743294591713,0.12376541,82645.0,82644.0,0.1847269]
[1743294592018,0.12376541,82645.0,82644.0,0.42448]
[1743294592512,0.12376541,82645.0,82644.0,0.5455269]
[1743294592907,0.12376541,82645.0,82644.0,0.42448]
[1743294593109,0.15606541,82645.0,82644.0,0.42448]
[1743294593620,0.15606541,82645.0,82644.0,0.4244]
[1743294594117,0.15606541,82645.0,82644.0,0.64094023]
[1743294594317,0.1560254,82645.0,82644.0,0.64094023]
[1743294596519,0.1560254,82645.0,82644.0,0.28014023]
[1743294596821,0.1560254,82645.0,82644.0,0.64094023]
[1743294597004,0.1560254,82645.0,82644.0,0.76198713]
[1743294598217,0.1550254,82645.0,82644.0,0.76198713]
[1743294599322,0.1550254,82645.0,82644.0,0.5454469]
[1743294599913,0.1560254,82645.0,82644.0,0.5454469]
[1743294600211,0.03498,82645.0,82644.0,0.5454469]
[1743294600522,0.001,82645.0,82644.0,0.5454469]
[1743294601011,0.00268,82645.0,82644.0,0.5454469]
[1743294601720,0.1237254,82645.0,82644.0,0.5454469]
[1743294603722,0.1558254,82645.0,82644.0,0.5454469]
[1743294606516,0.1890254,82645.0,82644.0,0.5454469]
[1743294609420,0.19854981,82645.0,82644.0,0.5454469]
[1743294609616,0.19854981,82645.0,82644.0,0.1846469]
[1743294609925,0.19854981,82645.0,82644.0,0.4818469]
[1743294610519,0.31806981,82645.0,82644.0,0.4818469]
[1743294611019,0.32932247,82645.0,82644.0,0.4818469]
[1743294611615,0.32932247,82645.0,82644.0,0.3608]
[1743294611921,0.45032265,82645.0,82644.0,0.3608]
[1743294612122,0.46010769,82645.0,82644.0,0.3608]
[1743294615129,0.46411931,82645.0,82644.0,0.3608]
[1743294615534,0.46811931,82645.0,82644.0,0.3608]
[1743294617030,0.1210469,82644.0,82643.0,8e-05]
[1743294617228,0.1435956,82644.0,82643.0,8e-05]
[1743294617533,0.21428064,82644.0,82643.0,8e-05]
[1743294617735,0.33528082,82644.0,82643.0,8e-05]
[1743294618034,0.69608082,82644.0,82643.0,8e-05]
[1743294618425,0.69908082,82644.0,82643.0,8e-05]
[1743294618625,0.1210556,82638.0,82637.0,8e-05]
[1743294618832,0.14392046,82638.0,82637.0,8e-05]
[1743294619029,0.1537055,82638.0,82637.0,8e-05]
[1743294619538,0.37070715,82638.0,82637.0,8e-05]
[1743294619926,0.37370715,82638.0,82637.0,8e-05]
[1743294620529,0.55500299,82638.0,82637.0,8e-05]
[1743294622340,0.55703959,82638.0,82637.0,8e-05]
[1743294623028,0.52493959,82638.0,82637.0,8e-05]
[1743294623229,0.34003794,82638.0,82637.0,0.1211371]
[1743294623428,0.21898234,82638.0,82637.0,0.4819371]
[1743294623633,0.20771806,82638.0,82637.0,0.4819371]
[1743294623834,0.20771806,82638.0,82637.0,0.5433371]
[1743294623835,0.02642222,82638.0,82637.0,0.5433371]
[1743294624335,0.14732295,82638.0,82637.0,0.5433371]
[1743294625142,0.13753791,82638.0,82637.0,0.5433371]
[1743294626945,0.14725614,82638.0,82637.0,0.5433371]
[1743294627644,0.02620054,82638.0,82637.0,0.55570753]
[1743294628541,0.13753791,82638.0,82637.0,0.9529371]
[1743294630250,0.14729684,82638.0,82637.0,0.9529371]
[1743294630434,0.14557683,82638.0,82637.0,0.9529371]
[1743294631550,0.14568015,82638.0,82637.0,0.9529371]
[1743294632451,0.17770016,82638.0,82637.0,0.9529371]
[1743294632650,0.17770016,82638.0,82637.0,0.8012]
[1743294632843,0.30849601,82638.0,82637.0,0.7704]
[1743294633148,0.30849601,82638.0,82637.0,0.4096]
[1743294633757,0.30849601,82638.0,82637.0,0.4402]
[1743294634054,0.30849601,82638.0,82637.0,0.471]
[1743294634250,0.30849601,82638.0,82637.0,0.1824571]
[1743294634843,0.30849601,82638.0,82637.0,0.0614]
[1743294635045,0.1210571,82637.0,82636.0,8e-05]
[1743294635246,0.20757857,82637.0,82636.0,8e-05]
[1743294635549,0.23827857,82637.0,82636.0,8e-05]
[1743294635750,0.1210586,82636.0,82635.0,0.00048405]
[1743294636050,0.14396008,82636.0,82635.0,0.00056405]
[1743294636253,0.20746008,82636.0,82635.0,0.00056405]
[1743294636462,0.33823091,82636.0,82635.0,0.00056405]
[1743294637253,0.32895506,82636.0,82635.0,0.00056405]
[1743294637453,0.31908944,82636.0,82635.0,0.00056405]
[1743294637649,0.30933051,82636.0,82635.0,0.00048405]
[1743294638046,0.31233051,82636.0,82635.0,0.00048405]
[1743294638746,0.31433051,82636.0,82635.0,0.00048405]
[1743294639153,0.67513051,82636.0,82635.0,0.00048405]
[1743294639556,0.74362012,82636.0,82635.0,0.00048405]
[1743294641961,0.1210747,82625.0,82624.0,0.0631]
[1743294642166,0.25254069,82625.0,82624.0,0.0631]
[1743294642755,0.37355405,82625.0,82624.0,0.0631]
[1743294642952,0.43995405,82625.0,82624.0,0.0631]
[1743294643157,0.44095405,82625.0,82624.0,0.0631]
[1743294644050,0.44095405,82625.0,82624.0,0.0303]
[1743294644357,0.1210762,82624.0,82623.0,8e-05]
[1743294644553,0.14459346,82624.0,82623.0,8e-05]
[1743294644747,0.20699346,82624.0,82623.0,8e-05]
[1743294645155,0.32802293,82624.0,82623.0,8e-05]
[1743294646248,0.32795597,82624.0,82623.0,8e-05]
[1743294647553,0.31839694,82624.0,82623.0,8e-05]
[1743294650661,0.46331323,82624.0,82623.0,8e-05]
[1743294653165,0.46331323,82624.0,82623.0,0.03078]
[1743294654475,0.31839694,82624.0,82623.0,0.03078]
[1743294659269,0.31839694,82624.0,82623.0,0.06088]
[1743294660275,0.28749694,82624.0,82623.0,0.06088]
[1743294660481,0.25464747,82624.0,82623.0,0.06088]
[1743294661365,0.28534747,82624.0,82623.0,0.06088]
[1743294661770,0.29485751,82624.0,82623.0,0.06088]
[1743294662377,0.29486242,82624.0,82623.0,0.06088]
[1743294662865,0.41589336,82624.0,82623.0,8e-05]
[1743294663281,0.121082,82620.0,82619.0,0.00048415]
[1743294663575,0.121082,82620.0,82619.0,0.06538415]
[1743294663576,0.14354906,82620.0,82619.0,0.06538415]
[1743294664080,0.27465226,82620.0,82619.0,0.06538415]
[1743294664377,0.33665226,82620.0,82619.0,0.06538415]
[1743294665477,0.33661917,82620.0,82619.0,0.06538415]
[1743294666375,0.34585118,82620.0,82619.0,0.00048415]
[1743294666977,0.35085118,82620.0,82619.0,0.00048415]
[1743294667377,0.35085118,82620.0,82619.0,0.06468415]
[1743294669885,0.35081655,82620.0,82619.0,0.06468415]
[1743294670280,0.40969243,82620.0,82619.0,0.03218415]
[1743294672984,0.40969243,82620.0,82619.0,0.00048415]
[1743294673589,0.3984343,82620.0,82619.0,0.00048415]
[1743294675482,0.39825311,82620.0,82619.0,0.03198415]
[1743294675685,0.38847854,82620.0,82619.0,0.03198415]
[1743294675880,0.38947854,82620.0,82619.0,0.03198415]
[1743294676585,0.39047854,82620.0,82619.0,0.03198415]
[1743294677775,0.39147854,82620.0,82619.0,0.03198415]
[1743294680580,0.3896076,82620.0,82619.0,0.03198415]
[1743294683289,0.2704476,82620.0,82619.0,0.03198415]
[1743294683488,0.3274476,82620.0,82619.0,0.03198415]
[1743294684394,0.32750085,82620.0,82619.0,0.03198415]
[1743294685500,0.08741885,82620.0,82619.0,0.39278415]
[1743294685790,0.07818684,82620.0,82619.0,0.51386765]
[1743294686896,0.00018146,82633.0,82632.0,0.1210644]
[1743294687094,0.00146146,82633.0,82632.0,0.4825444]
[1743294687296,0.71123234,82642.0,82635.0,0.12106]
[1743294687297,0.65070724,82642.0,82635.0,0.12106]
[1743294687484,0.25417455,82636.0,82635.0,0.4825]
[1743294687792,0.37523315,82636.0,82635.0,0.4825]
[1743294688193,0.37523315,82636.0,82635.0,0.36144]
[1743294688400,0.37523315,82636.0,82635.0,0.5132]
[1743294689898,0.37523315,82636.0,82635.0,0.5433]
[1743294690399,0.1218586,82636.0,82635.0,0.5433]
[1743294690585,0.1210586,82636.0,82635.0,0.5433]
[1743294691194,0.1210586,82636.0,82635.0,0.5443]
[1743294691400,0.1210586,82636.0,82635.0,0.5453]
[1743294692202,0.1218586,82636.0,82635.0,0.5453]
[1743294692793,0.1210586,82636.0,82635.0,0.5443]
[1743294692984,0.1210586,82636.0,82635.0,0.5453]
[1743294694497,0.1210586,82636.0,82635.0,0.1845]
[1743294694705,0.1218586,82636.0,82635.0,0.5453]
[1743294694998,0.1210586,82636.0,82635.0,0.5443]
[1743294695192,0.1218586,82636.0,82635.0,0.5443]
[1743294697192,0.2410186,82636.0,82635.0,0.42324]
[1743294697499,0.72283196,82636.0,82635.0,0.00164]
[1743294697696,0.72283196,82636.0,82635.0,0.001]
[1743294697895,0.12006,82635.0,82634.0,8e-05]
[1743294698099,0.18716,82635.0,82634.0,8e-05]
[1743294698601,0.30817336,82635.0,82634.0,8e-05]
[1743294699198,0.31017336,82635.0,82634.0,8e-05]
[1743294699701,0.31217336,82635.0,82634.0,8e-05]
[1743294700586,0.67297336,82635.0,82634.0,8e-05]
[1743294702197,0.67297336,82635.0,82627.0,0.00018146]
[1743294702198,0.1210703,82628.0,82627.0,0.00018146]
[1743294702397,0.1218703,82628.0,82627.0,0.00082146]
[1743294703001,0.31532745,82628.0,82627.0,0.00082146]
[1743294704201,0.31532745,82628.0,82627.0,0.00018146]
[1743294704395,0.31632745,82628.0,82627.0,0.00018146]
[1743294706401,0.30678513,82628.0,82627.0,0.00018146]
[1743294706595,0.31630696,82628.0,82627.0,0.00018146]
[1743294708995,0.30678513,82628.0,82627.0,0.00018146]
[1743294709397,0.42562513,82628.0,82627.0,0.00018146]
[1743294716606,0.24388513,82628.0,82627.0,0.00018146]
[1743294716906,0.38635467,82628.0,82627.0,0.48205326]
[1743294717108,0.38635467,82628.0,82627.0,0.54659326]
[1743294717297,0.26767467,82628.0,82627.0,0.54659326]
[1743294718510,0.26767467,82628.0,82627.0,0.18579326]
[1743294719007,0.26767467,82628.0,82627.0,0.54659326]
[1743294720109,0.2771825,82628.0,82627.0,0.54659326]
[1743294721001,0.26767467,82628.0,82627.0,0.54659326]
[1743294721295,0.1228703,82628.0,82627.0,0.54659326]
[1743294722100,0.13237046,82628.0,82627.0,0.54659326]
[1743294722605,0.13237182,82628.0,82627.0,0.54659326]
[1743294723110,0.0018,82628.0,82627.0,0.54659326]
[1743294723905,0.001,82628.0,82627.0,0.54659326]
[1743294724221,0.0018,82628.0,82627.0,0.54659326]
[1743294724402,0.0018,82628.0,82627.0,0.54859326]
[1743294724805,0.1210703,82628.0,82627.0,0.54959326]
[1743294725105,0.13148902,82628.0,82627.0,0.18879326]
[1743294725814,0.14273435,82628.0,82627.0,0.18879326]
[1743294726012,0.15249286,82628.0,82627.0,0.18879326]
[1743294726214,0.03142256,82628.0,82627.0,0.54959326]
[1743294726404,0.02017723,82628.0,82627.0,0.54959326]
[1743294727213,0.01041872,82628.0,82627.0,0.54859326]
[1743294727513,0.01041872,82628.0,82627.0,0.54759326]
[1743294727714,0.01041872,82628.0,82627.0,0.54659326]
[1743294727912,0.01041872,82628.0,82627.0,0.54759326]
[1743294728105,0.00084,82628.0,82627.0,0.95719326]
[1743294728310,0.10865564,82629.0,82628.0,0.1210703]
[1743294728514,0.10865564,82629.0,82628.0,0.1217103]
[1743294728713,0.10865564,82632.0,82631.0,0.1210659]
[1743294728914,0.10953564,82632.0,82631.0,0.1217859]
[1743294729314,0.10865564,82632.0,82631.0,0.2191859]
[1743294730306,0.22972004,82632.0,82631.0,0.2191859]
[1743294730512,0.23052004,82632.0,82631.0,0.2191859]
[1743294731019,0.10945564,82632.0,82631.0,0.2191859]
[1743294732122,0.10945564,82632.0,82631.0,0.2201859]
[1743294732318,0.10865564,82632.0,82631.0,0.2201859]
[1743294732821,0.10865564,82636.0,82635.0,0.12106]
[1743294733022,0.10945564,82636.0,82635.0,0.1217]
[1743294733420,0.23051424,82636.0,82635.0,0.1217]
[1743294733625,0.23051424,82636.0,82635.0,0.1848]
[1743294734014,0.23251424,82636.0,82635.0,0.5944]
[1743294734222,0.11145564,82636.0,82635.0,0.5944]
[1743294735623,0.23251424,82636.0,82635.0,0.5944]
[1743294736023,0.11145564,82636.0,82635.0,0.5944]
[1743294737223,0.01230645,82636.0,82635.0,0.5944]
[1743294737615,0.01150645,82636.0,82635.0,0.5944]
[1743294738517,0.10865564,82640.0,82639.0,0.1210542]
[1743294738724,0.11905116,82640.0,82639.0,0.4824942]
[1743294739022,0.11817116,82640.0,82639.0,0.4824942]
[1743294739324,0.10865564,82640.0,82639.0,0.4824942]
[1743294739518,0.10953564,82640.0,82639.0,0.5795942]
[1743294739921,0.12127183,82640.0,82639.0,0.5795942]
[1743294741029,0.12227183,82640.0,82639.0,0.5795942]
[1743294741426,0.01361619,82640.0,82639.0,0.5795942]
[1743294742831,0.01361619,82640.0,82639.0,0.9891942]
[1743294744022,0.01273619,82640.0,82639.0,0.9891942]
[1743294744733,0.01361619,82640.0,82639.0,0.9891942]
[1743294746123,0.01273619,82640.0,82639.0,0.9891942]
[1743294747425,0.07623619,82640.0,82639.0,0.9891942]
[1743294747730,0.07703619,82640.0,82639.0,0.9891942]
[1743294748227,0.07623619,82640.0,82639.0,0.9891942]
[1743294750427,0.07623619,82640.0,82639.0,0.6283942]
[1743294750630,0.08677354,82640.0,82639.0,0.9891942]
[1743294750828,0.08585354,82640.0,82639.0,0.9891942]
[1743294753430,0.08585354,82640.0,82639.0,0.6283942]
[1743294753630,0.08673354,82640.0,82639.0,0.9891942]
[1743294753833,0.08585354,82640.0,82639.0,0.6283942]
[1743294754136,0.08665354,82640.0,82639.0,0.9891942]
[1743294754332,0.08585354,82640.0,82639.0,0.6283942]
[1743294754534,0.08669354,82640.0,82639.0,0.9891942]
[1743294754735,0.08585354,82640.0,82639.0,0.9559942]
[1743294760942,0.02235354,82640.0,82639.0,0.9559942]
[1743294762539,0.21714648,82657.0,82641.0,0.060525]
[1743294762837,0.18200713,82653.0,82652.0,0.4818351]
[1743294763043,0.18200713,82653.0,82652.0,0.6002351]
[1743294763730,0.18200713,82653.0,82652.0,0.6632351]
[1743294763929,0.18500713,82653.0,82652.0,0.67548296]
[1743294764845,0.19000713,82653.0,82652.0,0.67548296]
[1743294765742,0.19300713,82653.0,82652.0,1.03628296]
[1743294766343,0.19300713,82653.0,82652.0,1.44588296]
[1743294767934,0.0118,82653.0,82652.0,1.66242319]
[1743294768139,0.011,82653.0,82652.0,1.66242319]
[1743294770836,0.0429,82653.0,82652.0,1.66242319]
[1743294771543,0.0429,82653.0,82652.0,1.44588296]
[1743294781251,0.0429,82653.0,82652.0,1.2528751]
[1743294781552,0.05250748,82653.0,82652.0,1.2528751]
[1743294781743,0.17354118,82653.0,82652.0,1.2528751]
[1743294781949,0.18338962,82653.0,82652.0,1.2528751]
[1743294783051,0.18352699,82653.0,82652.0,1.2528751]
[1743294783752,0.19501905,82653.0,82652.0,1.13184]
[1743294783956,0.19581905,82653.0,82652.0,0.4824751]
[1743294784266,0.19662791,82653.0,82652.0,0.36144]
[1743294784465,0.19582791,82653.0,82652.0,0.36144]
[1743294784947,0.31681708,82653.0,82652.0,0.00064]
[1743294785144,0.1210366,82651.0,82650.0,0.1210371]
[1743294785355,0.14312307,82651.0,82650.0,0.2427139]
[1743294785659,0.15297151,82651.0,82650.0,0.1216768]
[1743294785959,0.27395998,82651.0,82650.0,0.1216768]
[1743294786451,0.27895998,82651.0,82650.0,0.1216768]
[1743294787154,0.27895998,82651.0,82650.0,0.00064]
[1743294787355,0.51902171,82651.0,82650.0,0.00064]
[1743294787543,0.1210454,82645.0,82644.0,0.00018146]
[1743294787749,0.26077187,82645.0,82644.0,0.12194836]
[1743294788260,0.27062031,82645.0,82644.0,0.12194836]
[1743294788560,0.33512031,82645.0,82644.0,0.00090146]
[1743294789463,0.33812031,82645.0,82644.0,0.00090146]
[1743294789846,0.34116625,82645.0,82644.0,0.00090146]
[1743294793061,0.46216643,82645.0,82644.0,0.00090146]
[1743294793265,0.46216643,82645.0,82640.0,8e-05]
[1743294793266,0.1210512,82641.0,82640.0,8e-05]
[1743294793563,0.1210644,82632.0,82623.0,0.4096]
[1743294793761,0.1210791,82622.0,82621.0,0.21654023]
[1743294793963,0.14819748,82622.0,82621.0,0.21662023]
[1743294794159,0.27774239,82622.0,82621.0,0.21758023]
[1743294794353,0.27133828,82622.0,82621.0,0.21758023]
[1743294794564,0.33733828,82622.0,82621.0,0.21758023]
[1743294794755,0.34925494,82622.0,82621.0,0.21758023]
[1743294794951,0.47028881,82622.0,82621.0,0.21758023]
[1743294795269,0.47028881,82622.0,82621.0,0.0463504]
[1743294795463,0.47028881,82622.0,82619.0,0.00048415]
[1743294795464,0.121082,82620.0,82619.0,0.00056415]
[1743294795664,0.15986869,82620.0,82619.0,0.00112415]
[1743294795864,0.16971713,82620.0,82619.0,0.00048415]
[1743294796258,0.29700338,82620.0,82619.0,5e-08]
[1743294796660,0.1210864,82617.0,82616.0,0.10202042]
[1743294796955,0.1210923,82613.0,82612.0,0.17898836]
[1743294797159,0.63895899,82613.0,82612.0,0.09253066]
[1743294797366,0.63895899,82613.0,82612.0,0.02296156]
[1743294797562,0.64880743,82613.0,82612.0,6e-08]
[1743294797767,0.1210981,82609.0,82606.0,8e-05]
[1743294797967,0.14873989,82609.0,82606.0,8e-05]
[1743294798463,0.15858833,82609.0,82606.0,8e-05]
[1743294798662,0.27964124,82609.0,82608.0,0.31912898]
[1743294798856,0.27964124,82609.0,82608.0,0.28290188]
[1743294799060,0.31044124,82609.0,82608.0,0.28290188]
[1743294799259,0.32682046,82609.0,82608.0,0.24310068]
[1743294799658,0.32682046,82609.0,82603.0,0.00048424]
[1743294799659,0.0605518,82606.0,82603.0,0.00048424]
[1743294799965,0.4819055,82604.0,82603.0,0.00048424]
[1743294800170,0.62790729,82604.0,82603.0,0.00048424]
[1743294800463,0.62790729,82604.0,82603.0,4e-08]
[1743294800464,0.69170729,82604.0,82603.0,4e-08]
[1743294800659,0.1211099,82601.0,82600.0,0.09341082]
[1743294800863,0.1211099,82601.0,82594.0,0.032]